bitfinex/quotes_ETHUSD_20251031
["timestamp","ask_amount","ask_price","bid_price","bid_amount"]
[1761914541296,0.01,3851.7,3851.6,1.81742652]
[1761914542005,0.55617693,3851.7,3851.6,1.81742652]
[1761914542699,0.01,3851.7,3851.6,1.81742652]
[1761914544438,0.4807,3851.7,3851.6,1.81742652]
[1761914544644,1.49772529,3851.7,3851.6,1.81742652]
[1761914544949,1.49772529,3851.7,3850.1,1.81812591]
[1761914544950,1.49772529,3851.7,3851.5,1.81743345]
[1761914545150,1.48772529,3851.6,3850.6,1.8178985]
[1761914545457,0.54742529,3851.5,3851.4,1.8175209]
[1761914546258,0.01,3851.7,3851.6,1.81742652]
[1761914546559,0.55853843,3851.7,3851.6,1.78775155]
[1761914546851,0.01,3851.7,3851.6,1.78775155]
[1761914547051,0.55855992,3851.7,3850.1,1.805184]
[1761914547256,0.4807,3851.7,3851.6,1.81742652]
[1761914547554,1.02929842,3851.7,3851.6,1.81742652]
[1761914547756,1.49889842,3851.7,3851.6,1.81742652]
[1761914548535,1.49989842,3851.7,3851.6,1.81742652]
[1761914549637,1.49989842,3851.7,3851.4,1.81751777]
[1761914549638,1.49989842,3851.7,3851.4,1.81748162]
[1761914549849,0.4707,3851.5,3851.4,1.8175209]
[1761914550047,1.01929842,3851.5,3851.4,1.8175209]
[1761914551028,1.48889842,3851.5,3851.4,1.8175209]
[1761914552571,1.48809842,3851.5,3851.4,1.8175209]
[1761914552770,1.48809842,3851.5,3850.7,1.81785129]
[1761914552771,1.01849842,3851.5,3850.6,0.002]
[1761914552960,0.4707,3851.5,3851.4,1.8175209]
[1761914553459,0.9403,3851.5,3851.4,1.8175209]
[1761914553628,0.011,3851.7,3851.6,1.81742652]
[1761914558781,0.4817,3851.7,3851.6,1.81742652]
[1761914559088,0.9513,3851.7,3851.6,1.81742652]
[1761914559300,0.011,3851.7,3851.6,1.81742652]
[1761914563087,1e-08,3851.7,3851.6,1.94702652]
[1761914563472,1e-08,3851.7,3851.6,1.81742652]
[1761914568468,1e-08,3851.7,3851.6,1.94702652]
[1761914573602,0.94330001,3851.7,3851.6,1.81742652]
[1761914576180,0.45710001,3851.7,3851.6,1.81742652]
[1761914577002,1e-08,3851.7,3851.6,1.81742652]
[1761914577203,0.12960001,3851.7,3851.6,1.81742652]
[1761914577583,0.62950001,3851.7,3851.6,1.81742652]
[1761914577786,1.08440001,3851.7,3851.6,1.81742652]
[1761914578116,0.62870001,3851.7,3851.6,1.81742652]
[1761914578517,0.62870001,3851.7,3847.2,6.00536192]
[1761914578518,30.0,3850.9,3847.2,6.00536192]
[1761914578683,0.6806,3849.2,3849.1,1.82860694]
[1761914578881,0.4999,3849.5,3849.1,1.82859014]
[1761914579117,0.55233998,3849.4,3849.1,1.82859014]
[1761914579435,0.94673282,3850.0,3849.1,1.82859014]
[1761914579436,0.55233998,3850.0,3849.1,0.01]
[1761914579740,0.4557,3850.0,3849.4,1.81846039]
[1761914579896,0.4557,3850.0,3849.5,1.8184154]
[1761914580081,0.4557,3850.0,3849.1,0.01]
[1761914580489,0.4557,3850.0,3849.7,1.81830905]
[1761914580689,0.4557,3850.0,3849.7,1.81827913]
[1761914580888,0.1807,3850.2,3849.1,0.1396]
[1761914581198,0.4557,3850.1,3849.1,0.01]
[1761914581396,0.4999,3849.2,3849.1,0.01]
[1761914582389,0.9556,3849.2,3849.1,0.01]
[1761914582818,0.4557,3849.7,3849.2,1.8185597]
[1761914583035,0.4557,3849.7,3849.3,1.81849234]
[1761914583232,0.4557,3849.7,3849.3,1.81846722]
[1761914583436,0.4557,3850.1,3849.7,1.81831568]
[1761914583724,0.4557,3850.1,3849.1,0.01]
[1761914583920,0.4557,3850.1,3849.5,1.81841452]
[1761914584221,0.4557,3850.1,3849.1,0.01]
[1761914584721,0.4557,3850.1,3849.4,1.81844374]
[1761914584883,0.4557,3850.1,3849.2,1.81854638]
[1761914585089,0.4557,3850.1,3849.1,0.1396]
[1761914585401,0.4999,3849.2,3849.1,0.01]
[1761914585604,0.03246753,3850.0,3849.1,0.01]
[1761914585914,0.4557,3849.9,3849.1,0.01]
[1761914586531,0.4999,3849.2,3849.1,0.01]
[1761914586987,0.9556,3849.2,3849.1,0.01]
[1761914588834,0.1296,3849.4,3849.3,1.81851245]
[1761914590631,0.6364,3850.2,3850.0,1.81817959]
[1761914591037,0.6364,3850.2,3849.1,1.95818359]
[1761914591038,0.1296,3850.0,3849.9,1.81822904]
[1761914591206,0.1807,3850.2,3850.1,1.81813459]
[1761914591535,0.1807,3850.2,3849.9,1.81818198]
[1761914591720,0.1807,3850.2,3849.8,1.81827113]
[1761914591899,0.1296,3849.9,3849.8,1.81827113]
[1761914592103,0.6295,3849.9,3849.7,1.8183212]
[1761914592326,0.6295,3849.9,3849.8,1.81827627]
[1761914592831,0.1296,3849.9,3849.8,1.81827627]
[1761914593623,1.0852,3849.9,3849.3,0.1296]
[1761914593827,0.1807,3850.2,3849.8,1.81823423]
[1761914594024,0.1807,3850.2,3849.1,0.1396]
[1761914594236,0.1296,3849.7,3849.1,0.1396]
[1761914594450,0.1296,3849.7,3849.6,1.81837073]
[1761914594651,0.1807,3850.2,3849.9,1.81820662]
[1761914594843,0.1807,3850.2,3849.1,0.1396]
[1761914595027,0.4557,3850.1,3849.5,1.81838284]
[1761914595348,0.4557,3850.1,3849.1,0.1396]
[1761914595547,0.03246753,3850.0,3849.1,0.01]
[1761914595761,0.03246753,3850.0,3849.4,1.81842167]
[1761914595925,0.4557,3849.9,3849.5,1.81841657]
[1761914596350,0.4999,3849.6,3849.5,1.81841657]
[1761914596546,0.1807,3850.2,3849.1,0.1396]
[1761914597027,0.1807,3850.2,3849.8,1.81823184]
[1761914597357,0.1807,3850.2,3849.1,0.1396]
[1761914597358,0.1807,3850.2,3849.7,1.81827822]
[1761914597541,0.1807,3850.2,3850.1,1.81813459]
[1761914597946,0.6806,3850.2,3850.0,1.8181816]
[1761914598325,0.226,3850.1,3850.0,1.8181816]
[1761914598565,0.40748059,3850.9,3849.2,0.4744]
[1761914598566,0.43994053,3850.9,3850.5,1.81789909]
[1761914598769,0.40748059,3850.9,3850.1,1.1058]
[1761914598988,0.59608059,3850.9,3850.8,1.81780409]
[1761914599274,0.40748059,3850.9,3850.8,1.81780409]
[1761914599559,0.40748059,3850.9,3850.6,1.81787271]
[1761914599560,0.01,3851.7,3850.2,0.4713]
[1761914599776,0.01,3851.7,3851.6,1.81742652]
[1761914599984,0.01,3851.7,3850.4,1.81799293]
[1761914600129,0.01,3851.7,3851.6,1.81742652]
[1761914600729,0.4933,3851.7,3851.5,1.81746779]
[1761914600927,0.4933,3851.7,3850.5,0.1667]
[1761914601121,0.4933,3851.7,3851.3,1.81756767]
[1761914601338,0.4933,3851.7,3850.6,1.8178985]
[1761914601558,0.4933,3851.7,3851.3,1.81752117]
[1761914601956,0.4933,3851.7,3850.6,1.8178985]
[1761914601957,0.4933,3851.7,3851.4,1.81749621]
[1761914602165,0.01,3851.7,3850.8,0.4591]
[1761914602330,0.01,3851.7,3851.6,1.81742652]
[1761914603054,0.0102,3851.7,3851.6,1.81742652]
[1761914604571,0.0102,3851.7,3851.6,2.30852652]
[1761914605037,0.0102,3851.7,3851.6,1.81742652]
[1761914605440,0.0102,3851.7,3851.6,2.30852652]
[1761914609741,0.0102,3851.7,3851.6,2.76762652]
[1761914609959,0.0102,3851.7,3851.6,2.89722652]
[1761914610478,0.001,3852.1,3852.0,1.81723779]
[1761914610677,0.001,3852.1,3852.0,2.30833779]
[1761914611252,0.001,3852.1,3852.0,2.76743779]
[1761914611487,0.001,3852.1,3851.6,1.81742652]
[1761914611488,0.4843,3852.1,3849.0,1.81863171]
[1761914611782,0.4843,3852.1,3848.9,2.729]
[1761914611783,0.1296,3852.0,3851.9,1.81728497]
[1761914614493,0.1296,3852.0,3851.9,2.25635439]
[1761914614650,0.001,3852.1,3852.0,1.81723779]
[1761914614855,0.001,3852.1,3852.0,2.76743779]
[1761914616306,0.001,3852.1,3852.0,4.16711779]
[1761914617372,0.001,3852.1,3852.0,4.29671779]
[1761914617574,0.001,3852.1,3852.0,4.04558743]
[1761914618598,0.01,3853.7,3853.4,1.81657756]
[1761914618764,0.01,3853.7,3853.5,1.81653042]
[1761914619589,0.01,3853.7,3853.5,2.30763042]
[1761914620500,1e-08,3853.7,3853.6,2.76668328]
[1761914623981,1e-08,3853.7,3853.6,4.16636328]
[1761914628313,0.00020001,3854.0,3853.9,2.30744188]
[1761914628524,0.00020001,3854.0,3853.9,2.76654188]
[1761914628732,0.00020001,3854.0,3853.9,2.89614188]
[1761914629197,0.00020001,3854.0,3853.9,2.43704188]
[1761914629397,0.00020001,3854.0,3853.9,1.94594188]
[1761914629898,0.91190001,3854.0,3853.9,1.81634188]
[1761914632396,0.91190001,3854.0,3853.8,1.81638485]
[1761914632628,0.6376,3853.9,3853.2,1.81667185]
[1761914632951,0.6376,3853.9,3853.5,1.8165293]
[1761914633151,0.6376,3853.9,3852.1,1.82719062]
[1761914633152,0.6393,3852.2,3852.1,1.82719062]
[1761914633495,1.0943,3852.2,3852.1,1.82719062]
[1761914633896,0.455,3852.8,3852.1,2.31969062]
[1761914634097,0.1826,3852.9,3852.8,1.81686046]
[1761914634549,1.0943,3852.9,3852.8,1.81686046]
[1761914634716,1.0943,3852.9,3852.1,1.95679062]
[1761914634717,1.0943,3852.9,3852.1,0.1396]
[1761914634919,0.7157,3852.8,3852.1,0.01]
[1761914635132,0.7157,3852.8,3852.7,1.81690762]
[1761914635334,0.2607,3852.8,3852.7,1.81690762]
[1761914635551,0.455,3853.2,3852.5,1.81698038]
[1761914635863,0.455,3853.2,3853.1,1.816719]
[1761914636213,0.455,3853.2,3852.1,0.01]
[1761914636214,0.1826,3852.6,3852.1,0.01]
[1761914636420,0.1826,3852.6,3852.5,1.81700194]
[1761914636615,0.6376,3852.9,3852.8,1.81686046]
[1761914636916,0.455,3853.6,3853.5,1.81653042]
[1761914637141,0.455,3853.5,3852.1,0.1396]
[1761914637315,0.4567,3852.8,3852.7,1.81690762]
[1761914638548,0.455,3853.3,3852.1,1.9567724]
[1761914638714,0.455,3853.3,3852.2,1.39968]
[1761914638917,0.455,3853.3,3853.2,1.81667185]
[1761914639347,0.9117,3853.3,3853.2,1.81667185]
[1761914640536,0.4567,3853.3,3853.2,1.81667185]
[1761914640820,0.4567,3853.3,3853.0,1.81674315]
[1761914640821,0.54723391,3853.6,3853.0,1.81674315]
[1761914641020,0.54723391,3853.6,3853.5,1.81653042]
[1761914641255,0.455,3853.7,3853.6,1.81648328]
[1761914641557,0.54723391,3853.8,3853.7,1.81643615]
[1761914641780,1.00393391,3853.8,3853.7,1.81643615]
[1761914641942,0.4567,3853.8,3853.7,1.81643615]
[1761914642463,0.4567,3853.8,3853.7,3.21611615]
[1761914642784,0.1826,3853.9,3853.8,1.81638901]
[1761914642934,0.54743392,3854.0,3853.9,1.81634188]
[1761914643275,8.470742,3853.8,3852.6,0.002]
[1761914643603,0.6393,3852.7,3852.6,0.002]
[1761914643738,1.90544016,3852.7,3852.6,0.002]
[1761914644071,2.58926066,3852.7,3852.6,0.002]
[1761914644272,1.67397868,3852.7,3852.6,0.002]
[1761914646040,2.35963973,3852.7,3852.6,0.002]
[1761914646276,1.64153391,3852.7,3852.6,0.002]
[1761914646548,3.82111968,3852.7,3852.6,0.002]
[1761914647045,5.6380273,3852.7,3852.6,0.002]
[1761914647289,6.9241928,3852.7,3852.6,0.002]
[1761914647466,14.47503053,3852.7,3852.6,0.002]
[1761914647783,17.2476335,3852.7,3852.6,0.002]
[1761914648086,21.55791549,3852.4,3852.3,0.002]
[1761914648387,21.0132254,3852.4,3852.3,0.002]
[1761914648545,33.7635234,3852.4,3852.3,0.002]
[1761914648744,33.4116924,3852.4,3852.3,0.002]
[1761914649424,27.70606092,3852.4,3852.3,0.002]
[1761914649576,34.4736694,3852.4,3852.3,0.002]
[1761914649993,34.2167524,3852.4,3852.3,0.002]
[1761914650398,35.1476614,3852.4,3852.3,0.002]
[1761914650581,33.2274954,3852.4,3852.3,0.002]
[1761914650990,31.2432044,3852.4,3852.3,0.002]
[1761914651180,29.6178224,3852.4,3852.3,0.002]
[1761914651694,28.8044084,3852.4,3852.3,0.002]
[1761914652313,27.99536079,3852.4,3852.3,0.002]
[1761914652678,32.31398679,3852.4,3852.3,0.002]
[1761914652872,32.7211962,3852.4,3852.3,0.002]
[1761914653077,14.8406554,3852.4,3852.3,0.002]
[1761914653299,16.92249278,3852.4,3852.3,0.002]
[1761914653499,11.330908,3852.4,3852.3,0.002]
[1761914653802,9.929669,3852.4,3852.3,0.002]
[1761914654576,18.062912,3852.4,3852.3,0.002]
[1761914655011,15.909414,3852.4,3852.3,0.002]
[1761914655314,6.65527389,3852.4,3852.3,0.002]
[1761914655472,5.87742489,3852.4,3852.3,0.002]
[1761914655807,5.97028429,3852.4,3852.3,0.002]
[1761914656007,6.90888529,3852.4,3852.3,0.002]
[1761914656695,11.6002564,3852.4,3852.3,0.002]
[1761914656910,12.0057604,3852.4,3852.3,0.002]
[1761914657696,16.67130329,3852.4,3852.3,0.002]
[1761914658020,8.72063129,3852.4,3852.3,0.002]
[1761914658522,8.31512729,3852.4,3852.3,0.002]
[1761914658701,2.76670129,3852.4,3852.3,0.002]
[1761914658904,10.08622059,3852.4,3852.3,0.002]
[1761914659108,10.05377329,3852.4,3852.3,0.002]
[1761914659514,5.36587229,3852.4,3852.3,0.002]
[1761914659709,2.77180129,3852.4,3852.3,0.002]
[1761914659911,2.80424859,3852.4,3852.3,0.002]
[1761914663330,2.70016121,3852.4,3852.3,0.002]
[1761914663528,2.66771391,3852.4,3852.3,0.002]
[1761914663830,0.84038121,3852.4,3852.3,0.002]
[1761914664128,0.4883473,3852.4,3852.3,0.002]
[1761914664724,0.4559,3852.4,3852.3,0.002]
[1761914664923,0.03244562,3852.6,3852.3,0.002]
[1761914665612,0.03244562,3852.6,3852.3,1.81909466]
[1761914665839,0.03244562,3852.6,3852.3,0.002]
[1761914666046,0.51654562,3852.6,3852.3,0.002]
[1761914666357,0.4559,3852.4,3852.3,0.002]
[1761914667018,0.94,3852.4,3852.3,0.002]
[1761914667247,0.9724473,3852.4,3852.3,0.002]
[1761914667463,6.2914633,3852.4,3852.3,0.002]
[1761914667645,6.80624991,3852.4,3852.3,0.002]
[1761914668158,4.27669491,3852.4,3852.3,0.002]
[1761914668330,1.48723391,3852.4,3852.3,0.002]
[1761914668573,2.9955653,3852.4,3852.3,0.002]
[1761914668854,3.67597521,3852.4,3852.3,0.002]
[1761914669320,1.51968121,3852.4,3852.3,0.002]
[1761914669648,0.4883473,3852.4,3852.3,0.002]
[1761914670046,0.4559,3852.4,3852.3,0.002]
[1761914671159,0.94,3852.4,3852.3,0.002]
[1761914671617,1.51968121,3852.4,3852.3,0.002]
[1761914672451,2.20183859,3852.4,3852.3,0.002]
[1761914673319,1.51968121,3852.4,3852.3,0.002]
[1761914674375,2.4292046,3852.4,3852.3,0.002]
[1761914675919,1.51968121,3852.4,3852.3,0.002]
[1761914678760,1.51988121,3852.4,3852.3,0.002]
[1761914680045,24.77354132,3852.4,3852.3,0.002]
[1761914680230,10.71477091,3852.4,3852.3,0.002]
[1761914680436,12.53182002,3852.4,3852.3,0.002]
[1761914681036,15.81850102,3852.4,3852.3,0.002]
[1761914681465,17.21818102,3852.4,3852.3,0.002]
[1761914681627,12.29688745,3852.2,3852.1,0.01]
[1761914681957,13.07962336,3852.2,3852.1,0.01]
[1761914682162,13.02650836,3852.2,3852.1,0.01]
[1761914682655,10.14591291,3852.2,3852.1,0.01]
[1761914682854,11.67442736,3852.2,3852.1,0.01]
[1761914683017,12.48225736,3852.2,3852.1,0.01]
[1761914683664,2.17721391,3852.2,3852.1,0.01]
[1761914683820,4.35758391,3852.2,3852.1,0.01]
[1761914684018,2.19384774,3852.2,3852.1,0.01]
[1761914684253,2.19384774,3852.2,3852.1,0.4915]
[1761914684254,0.58419149,3852.2,3852.1,0.4915]
[1761914684942,0.5517425,3852.2,3852.1,0.4915]
[1761914685347,1.47159116,3852.2,3852.1,0.4915]
[1761914685936,1.47159116,3852.2,3852.1,0.01]
[1761914686333,0.5517425,3852.2,3852.1,0.01]
[1761914687444,0.5517425,3852.2,3852.1,0.4915]
[1761914688223,1.2419765,3852.2,3852.1,0.01]
[1761914688855,1.2419765,3852.2,3852.1,0.4915]
[1761914690454,1.6933765,3852.2,3852.1,0.01]
[1761914690683,16.56254561,3852.2,3852.1,0.01]
[1761914690855,15.64269695,3852.2,3852.1,0.01]
[1761914691022,17.0220532,3852.2,3852.1,0.01]
[1761914691229,15.64269695,3852.2,3852.1,0.01]
[1761914691425,7.4062225,3852.2,3852.1,0.01]
[1761914691641,6.0955325,3852.2,3852.1,0.01]
[1761914692027,5.3291225,3852.2,3852.1,0.01]
[1761914692559,17.2604622,3852.2,3852.1,0.01]
[1761914693145,6.44261975,3852.2,3852.1,0.01]
[1761914693337,5.0632635,3852.2,3852.1,0.01]
[1761914693536,3.32297101,3852.2,3852.1,0.01]
[1761914693747,1.9514225,3852.2,3852.1,0.5012]
[1761914694441,2.87157101,3852.2,3852.1,0.5012]
[1761914694646,1.47189101,3852.2,3852.1,0.5012]
[1761914694984,0.5517425,3852.2,3852.1,0.5012]
[1761914697960,0.5517425,3852.2,3852.1,0.5032]
[1761914698364,0.5517425,3852.2,3852.1,0.012]
[1761914699167,1.0157425,3852.2,3852.1,0.012]
[1761914699349,0.5517425,3852.2,3852.1,0.4894]
[1761914699549,0.5517425,3852.2,3852.1,1.0884]
[1761914699980,0.55283838,3852.2,3852.1,1.0884]
[1761914700150,0.55283838,3852.2,3852.1,2.90559062]
[1761914700486,0.1296,3852.2,3852.1,2.90559062]
[1761914700659,0.1296,3852.2,3852.1,1.0884]
[1761914700860,0.68243838,3852.2,3852.1,0.619]
[1761914701186,0.68243838,3852.2,3852.1,2.90559062]
[1761914701583,0.1296,3852.2,3852.1,2.90559062]
[1761914701765,0.1296,3852.2,3852.1,1.0884]
[1761914702289,0.1296,3852.2,3852.1,0.619]
[1761914702853,0.68243838,3852.2,3852.1,0.4894]
[1761914703558,0.68243838,3852.2,3852.1,0.619]
[1761914703781,1.08714238,3852.2,3852.1,0.619]
[1761914704287,0.1288,3852.2,3852.1,2.90559062]
[1761914705084,0.001,3852.3,3852.2,1.81714345]
[1761914705287,0.001,3852.3,3852.2,2.76394345]
[1761914705975,0.001,3852.3,3852.2,4.16362345]
[1761914714385,0.001,3852.3,3852.2,2.76394345]
[1761914714594,0.001,3852.3,3852.2,4.16362345]
[1761914716528,0.001,3852.8,3852.7,1.81690762]
[1761914716697,0.001,3852.8,3852.7,2.29430762]
[1761914716901,0.001,3852.8,3852.7,2.76370762]
[1761914717820,0.001,3852.8,3852.7,4.16338762]
[1761914718190,0.001,3852.8,3852.7,2.42390762]
[1761914718709,0.001,3852.8,3852.7,2.89330762]
[1761914718906,0.001,3852.8,3852.7,2.42390762]
[1761914719110,0.001,3852.8,3852.7,2.29430762]
[1761914719300,0.1306,3852.8,3852.7,2.29430762]
[1761914721409,0.5944,3852.8,3852.7,1.81690762]
[1761914722235,0.1306,3852.8,3852.7,1.81690762]
[1761914722606,0.1306,3852.8,3852.7,2.31540762]
[1761914722842,0.1306,3852.8,3852.7,2.79510762]
[1761914723033,0.1306,3852.8,3852.7,2.31540762]
[1761914725024,0.1306,3852.8,3852.4,0.4797]
[1761914725025,0.5944,3852.8,3852.4,1.81701376]
[1761914725226,1.0557,3852.8,3852.1,0.2712]
[1761914725543,0.405504,3852.7,3852.5,1.81697011]
[1761914725751,0.535104,3852.5,3852.3,1.81709457]
[1761914725926,0.535104,3852.5,3852.1,0.012]
[1761914725927,0.869304,3852.2,3852.1,0.012]
[1761914726131,1.330604,3852.2,3852.1,0.012]
[1761914727905,1.330604,3852.2,3852.1,1.82919062]
[1761914728712,1.330604,3852.2,3852.1,0.012]
[1761914728911,1.329804,3852.2,3852.1,0.012]
[1761914729551,1.36225299,3852.2,3852.1,0.012]
[1761914729757,1.91285016,3852.2,3852.1,0.012]
[1761914730352,1.329804,3852.2,3852.1,0.012]
[1761914730519,4.35440316,3852.2,3852.1,0.012]
[1761914730709,6.17154661,3852.2,3852.1,0.012]
[1761914730912,29.87694762,3852.2,3852.1,0.012]
[1761914731107,20.9900796,3852.2,3852.1,0.012]
[1761914731315,15.89451962,3852.2,3852.1,0.012]
[1761914731826,20.99965862,3852.2,3852.1,0.012]
[1761914732257,21.68780261,3852.2,3852.1,0.012]
[1761914732466,21.39161561,3852.2,3852.1,0.012]
[1761914732675,20.45397361,3852.2,3852.1,0.012]
[1761914732974,17.18239461,3852.2,3852.1,0.012]
[1761914733281,14.80313461,3852.2,3852.1,0.012]
[1761914733871,20.18453261,3852.2,3852.1,0.012]
[1761914734167,21.58421261,3852.2,3852.1,0.012]
[1761914734371,20.89606862,3852.2,3852.1,0.012]
[1761914734575,20.65952062,3852.2,3852.1,0.012]
[1761914734880,21.91894062,3852.2,3852.1,0.012]
[1761914735253,22.60624704,3852.2,3852.1,0.012]
[1761914735974,26.52660904,3852.2,3852.1,0.012]
[1761914736273,25.21781487,3852.2,3852.1,0.012]
[1761914736494,19.98031487,3852.2,3852.1,0.012]
[1761914736689,16.36187787,3852.2,3852.1,0.012]
[1761914737184,16.72235587,3852.2,3852.1,0.012]
[1761914737401,16.03530162,3852.2,3852.1,0.012]
[1761914737609,15.77521462,3852.2,3852.1,0.012]
[1761914738083,15.77092562,3852.2,3852.1,0.012]
[1761914738949,16.52390462,3852.2,3852.1,0.012]
[1761914739180,16.26381762,3852.2,3852.1,0.012]
[1761914739807,14.90814362,3852.2,3852.1,0.012]
[1761914739964,5.09722462,3852.2,3852.1,0.012]
[1761914740168,16.80499061,3852.2,3852.1,0.012]
[1761914740481,16.77254162,3852.2,3852.1,0.012]
[1761914741089,17.46240862,3852.2,3852.1,0.012]
[1761914741968,17.03252862,3852.2,3852.1,0.012]
[1761914742616,16.51245462,3852.2,3852.1,0.012]
[1761914743103,16.63199362,3852.2,3852.1,0.012]
[1761914743402,23.00199362,3852.2,3852.1,0.012]
[1761914743760,21.12894262,3852.2,3852.1,0.012]
[1761914743961,12.50717017,3852.2,3852.1,0.012]
[1761914744179,14.23738817,3852.2,3852.1,0.012]
[1761914744398,13.83188417,3852.2,3852.1,0.012]
[1761914744600,12.01074417,3852.2,3852.1,0.012]
[1761914744798,12.41624817,3852.2,3852.1,0.012]
[1761914745308,13.34355017,3852.2,3852.1,0.012]
[1761914745505,8.25040117,3852.2,3852.1,0.012]
[1761914745812,7.699804,3852.2,3852.1,0.012]
[1761914746462,9.51694745,3852.2,3852.1,0.012]
[1761914746668,7.699804,3852.2,3852.1,0.012]
[1761914746898,8.65149445,3852.2,3852.1,0.012]
[1761914747800,10.4686379,3852.2,3852.1,0.012]
[1761914748101,9.20112509,3852.2,3852.1,0.012]
[1761914749804,7.32513464,3852.2,3852.1,0.5105]
[1761914750101,6.91963064,3852.2,3852.1,0.5105]
[1761914750685,7.32513464,3852.2,3852.1,0.5105]
[1761914751165,6.91963064,3852.2,3852.1,0.6401]
[1761914751370,7.41173064,3852.2,3852.1,0.012]
[1761914751611,7.81723464,3852.2,3852.1,0.012]
[1761914753613,7.81723464,3852.2,3852.1,0.6026]
[1761914753614,0.001,3852.2,3852.1,0.6026]
[1761914753770,0.001,3852.2,3852.1,0.012]
[1761914754171,0.03264899,3852.2,3852.1,0.012]
[1761914754373,0.405704,3852.2,3852.1,0.012]
[1761914754630,0.897804,3852.2,3852.1,0.012]
[1761914754807,1.366604,3852.2,3852.1,0.012]
[1761914754975,1.91824798,3852.2,3852.1,0.012]
[1761914755170,1.366604,3852.2,3852.1,0.012]
[1761914755405,1.91824798,3852.2,3852.1,0.012]
[1761914755718,1.44944798,3852.2,3852.1,0.012]
[1761914756074,2.18202302,3852.2,3852.1,0.012]
[1761914756270,3.99916647,3852.2,3852.1,0.012]
[1761914756588,5.39884647,3852.2,3852.1,0.012]
[1761914756914,18.45052047,3852.2,3852.1,0.012]
[1761914757098,17.30404647,3852.2,3852.1,0.012]
[1761914757303,16.20167447,3852.2,3852.1,0.012]
[1761914757783,18.11600147,3852.2,3852.1,0.012]
[1761914758193,16.46696047,3852.2,3852.1,0.012]
[1761914758408,17.84631672,3852.2,3852.1,0.012]
[1761914758810,18.73811772,3852.2,3852.1,0.012]
[1761914759524,23.603672,3852.2,3852.1,0.012]
[1761914759727,35.837927,3852.2,3852.1,0.012]
[1761914760830,2.22274179,3852.0,3851.9,0.002]
[1761914761129,31.64445244,3852.0,3851.9,0.002]
[1761914761329,32.37192466,3852.0,3851.9,0.002]
[1761914761528,32.35238897,3851.9,3851.8,0.002]
[1761914761824,38.93811012,3851.9,3851.8,0.002]
[1761914762035,39.20188516,3851.9,3851.8,0.002]
[1761914762619,39.60912942,3851.9,3851.8,0.002]
[1761914763331,6.72744828,3851.9,3851.8,0.002]
[1761914763507,15.65314902,3851.9,3851.8,0.002]
[1761914763709,16.05865302,3851.9,3851.8,0.002]
[1761914764044,21.13951327,3851.9,3851.8,0.002]
[1761914764352,11.8851153,3851.9,3851.8,0.002]
[1761914764512,13.70240027,3851.9,3851.8,0.002]
[1761914764698,15.08205746,3851.9,3851.8,0.002]
[1761914764893,22.5707725,3851.9,3851.8,0.002]
[1761914765094,22.5707725,3851.9,3850.4,0.1683]
[1761914765095,0.4821,3851.8,3850.1,0.01]
[1761914765302,4.228997,3850.2,3850.1,0.01]
[1761914765601,4.84082951,3850.2,3850.1,0.01]
[1761914765802,5.34209535,3850.2,3850.1,0.01]
[1761914766012,4.84082951,3850.2,3850.1,0.01]
[1761914766208,4.18360682,3850.2,3850.1,0.01]
[1761914766413,6.00169419,3850.2,3850.1,0.01]
[1761914766639,4.15114098,3850.2,3850.1,0.01]
[1761914766961,1.20641382,3850.2,3850.1,0.01]
[1761914767131,0.65476984,3850.2,3850.1,0.01]
[1761914767452,1.20641382,3850.2,3850.1,0.01]
[1761914767624,0.65476984,3850.2,3850.1,0.01]
[1761914767828,7.62357823,3850.2,3850.1,0.01]
[1761914768013,8.05991239,3850.2,3850.1,0.01]
[1761914768215,26.16589292,3850.2,3850.1,0.01]
[1761914768415,20.12056939,3850.2,3850.1,0.01]
[1761914768657,21.52024939,3850.2,3850.1,0.01]
[1761914768951,21.90134748,3850.2,3850.1,0.01]
[1761914769453,29.46938005,3850.2,3850.1,0.01]
[1761914770151,35.83938005,3850.2,3850.1,0.01]
[1761914770356,22.34714893,3850.2,3850.1,0.01]
[1761914770564,21.43162539,3850.2,3850.1,0.01]
[1761914770764,6.92164398,3850.2,3850.1,0.01]
[1761914770914,6.92164398,3850.2,3850.1,0.471]
[1761914771115,6.92164398,3850.2,3850.1,0.01]
[1761914771355,7.41374398,3850.2,3850.1,0.01]
[1761914771568,7.81924798,3850.2,3850.1,0.01]
[1761914772060,7.32714798,3850.2,3850.1,0.012]
[1761914772261,13.81870798,3850.2,3850.1,0.012]
[1761914772460,14.49283635,3850.2,3850.1,0.012]
[1761914772627,13.14354898,3850.2,3850.1,0.012]
[1761914772957,16.36131635,3850.2,3850.1,0.012]
[1761914773157,31.28942155,3850.2,3850.1,0.012]
[1761914773327,11.76419798,3850.2,3850.1,0.012]
[1761914773537,13.58228535,3850.2,3850.1,0.012]
[1761914774370,14.47311535,3850.2,3850.1,0.012]
[1761914774531,16.58343398,3850.2,3850.1,0.012]
[1761914774863,13.42817798,3850.2,3850.1,0.012]
[1761914775169,31.52928,3850.1,3849.7,0.002]
[1761914775354,6.55931827,3849.8,3849.7,0.002]
[1761914775553,7.00081725,3849.8,3849.7,0.002]
[1761914775868,7.46961725,3849.8,3849.7,0.002]
[1761914776265,34.84640425,3849.8,3849.7,0.002]
[1761914777456,34.37760425,3849.8,3849.7,0.002]
[1761914777766,34.86710425,3849.8,3849.7,0.002]
[1761914778634,41.23710425,3849.8,3849.7,0.002]
[1761914779450,41.23630425,3849.8,3849.7,0.002]
[1761914780764,37.32714798,3849.8,3849.7,0.002]
[1761914781013,40.13960025,3849.8,3849.7,0.002]